bitfinex-derivatives/quotes_ETHF0:USTF0_20250928
["timestamp","ask_amount","ask_price","bid_price","bid_amount"]
[1759100436107,3.9995,4138.0,4137.9,0.7975]
[1759100436507,3.2078,4138.0,4137.9,0.7975]
[1759100437903,0.251,4138.1,4138.0,0.73692]
[1759100438101,0.251,4138.1,4138.0,1.53442]
[1759100438296,3.2078,4138.5,4138.4,1.23228]
[1759100440514,0.0026005,4138.9,4138.8,1.23224]
[1759100441615,0.7943005,4138.9,4138.8,1.23224]
[1759100441912,0.7943005,4138.9,4138.8,0.7975]
[1759100442109,0.7917,4138.8,4138.6,0.7975]
[1759100442409,0.0026005,4138.9,4138.7,0.43475]
[1759100442708,0.0026005,4138.9,4138.8,0.7975]
[1759100443915,0.0026005,4138.9,4138.8,6.8245]
[1759100444404,0.0026005,4138.9,4138.8,1.8245]
[1759100444901,0.0026005,4138.9,4138.8,6.8245]
[1759100445108,0.7917,4139.8,4138.8,6.8245]
[1759100445109,3.2078,4139.8,4139.7,1.8245]
[1759100445415,3.4588,4139.8,4139.7,1.8245]
[1759100445618,3.9658,4139.8,4139.7,1.8245]
[1759100445911,1.2572,4139.8,4139.7,1.8245]
[1759100446208,0.00250636,4139.8,4139.7,1.82711877]
[1759100447106,1.80040636,4139.8,4139.7,0.00261877]
[1759100447618,0.50950636,4139.8,4139.7,1.82711877]
[1759100447816,1.80040636,4139.8,4139.7,0.00261877]
[1759100448414,5.79420636,4139.8,4139.7,0.00261877]
[1759100448619,8.80470086,4139.8,4139.7,0.00261877]
[1759100448919,0.79420636,4139.8,4139.7,0.00261877]
[1759100449508,8.80470086,4139.8,4139.7,0.00261877]
[1759100449713,0.7917,4139.1,4139.0,3.2078]
[1759100449919,1.0427,4139.1,4139.0,3.2078]
[1759100450414,1.0427,4139.1,4139.0,4.0053]
[1759100450415,0.251,4139.1,4139.0,4.0053]
[1759100450610,0.251,4139.1,4139.0,4.0084315]
[1759100451011,1.0427,4139.1,4139.0,0.0031315]
[1759100451714,1.0427,4139.1,4139.0,0.8006315]
[1759100451715,0.251,4139.1,4139.0,0.8006315]
[1759100451914,0.43469,4139.3,4139.0,0.3052315]
[1759100452119,0.251,4139.2,4139.0,0.3052315]
[1759100452311,0.251,4139.2,4139.0,0.7399415]
[1759100452511,0.251,4139.2,4139.1,0.7975]
[1759100453317,0.00250636,4139.8,4139.5,0.3021]
[1759100453517,0.00250636,4139.8,4139.7,1.23214]
[1759100457224,0.00250636,4139.8,4139.7,6.23214]
[1759100458327,0.00250636,4139.8,4139.7,6.48314]
[1759100458522,3.4588,4140.5,4140.4,1.19557]
[1759100458829,3.4588,4140.5,4140.4,1.8216]
[1759100459627,5.29150202,4140.5,4140.0,0.2964]
[1759100459823,0.43458,4140.4,4140.2,0.761]
[1759100460028,4.49820202,4140.5,4140.4,1.8216]
[1759100460327,0.7933,4140.0,4139.9,0.43462]
[1759100460521,0.5054,4140.0,4139.9,2.25622]
[1759100460727,0.251,4140.1,4140.0,2.118]
[1759100460932,0.00210202,4140.5,4140.4,2.25617]
[1759100462228,0.00210202,4140.5,4140.4,1.8216]
[1759100462229,1.03940202,4140.5,4140.4,1.8216]
[1759100462620,0.00210202,4140.5,4140.4,1.8216]
[1759100463024,0.50750202,4140.5,4140.4,1.8216]
[1759100463620,0.00210202,4140.5,4140.4,1.8216]
[1759100464030,1.83270202,4140.5,4140.4,0.761]
[1759100464230,1.0373,4140.3,4140.2,1.8216]
[1759100464534,0.5054,4140.3,4140.2,1.8216]
[1759100464728,1.0373,4140.3,4140.2,1.8216]
[1759100464927,1.0373,4140.3,4140.1,3.2078]
[1759100465227,0.00210202,4140.5,4140.1,3.7399]
[1759100465228,2.0816,4140.2,4140.1,3.7399]
[1759100465532,2.0816,4140.2,4140.1,3.2078]
[1759100466329,7.0816,4140.2,4140.1,3.2078]
[1759100466831,1.8306,4139.7,4139.6,3.2078]
[1759100467137,2.51624,4139.7,4139.6,3.2078]
[1759100467830,2.0816,4139.7,4139.6,4.5009]
[1759100468225,1.2883,4139.7,4139.6,5.0294]
[1759100468533,0.5054,4140.0,4139.9,1.8216]
[1759100468734,2.0816,4140.0,4139.9,1.2931]
[1759100468929,1.8306,4139.7,4139.6,3.2078]
[1759100469634,0.7564,4139.7,4139.6,5.0294]
[1759100470533,0.5054,4140.1,4140.0,0.96671]
[1759100470735,0.7564,4140.1,4140.0,2.55261]
[1759100470929,5.47506202,4140.5,4140.4,1.2931]
[1759100471130,4.49820202,4140.5,4140.4,1.8216]
[1759100471334,3.96630202,4140.5,4140.4,1.8216]
[1759100471535,3.71530202,4140.5,4140.4,1.8216]
[1759100471823,3.96630202,4140.5,4140.4,1.8216]
[1759100472040,3.46090202,4140.5,4140.4,1.8216]
[1759100472535,3.99180202,4140.5,4140.4,1.8216]
[1759100472930,1.0504,4140.2,4140.1,0.7737]
[1759100473131,0.7542,4140.1,4139.6,3.2078]
[1759100473333,1.0504,4140.1,4140.0,0.9237]
[1759100473633,1.0504,4140.1,4140.0,1.2628]
[1759100473837,1.8046,4140.1,4140.0,1.2628]
[1759100474133,1.0504,4140.1,4139.6,3.2078]
[1759100474333,1.18881,4140.1,4139.6,4.2079]
[1759100474638,1.18881,4140.1,4140.0,1.2628]
[1759100474639,2.23921,4140.1,4140.0,1.2628]
[1759100474840,0.5309,4140.1,4140.0,2.0893]
[1759100475036,0.7542,4140.0,4139.7,0.7737]
[1759100475242,0.7542,4140.0,4139.7,1.2628]
[1759100475243,1.8046,4139.8,4139.7,1.2628]
[1759100475431,1.8046,4139.8,4139.6,3.64245]
[1759100475432,0.5309,4140.0,4139.9,2.20842]
[1759100475627,3.20990202,4140.5,4139.9,0.511]
[1759100475841,0.7819,4140.4,4140.3,1.7738]
[1759100476236,1.3014,4140.4,4140.3,1.7738]
[1759100476537,0.5309,4139.9,4139.8,1.69743]
[1759100476743,0.7819,4139.9,4139.8,2.20843]
[1759100477435,1.3014,4139.9,4139.8,2.20843]
[1759100477735,2.0556,4139.9,4139.8,1.20833]
[1759100477936,2.0556,4139.9,4139.8,0.7737]
[1759100478343,2.0556,4139.9,4139.8,1.2628]
[1759100478538,2.0556,4139.9,4139.8,1.7738]
[1759100478539,0.251,4139.9,4139.8,1.7738]
[1759100478844,0.5309,4140.3,4140.2,2.20838]
[1759100479052,0.7819,4140.3,4140.2,2.20838]
[1759100480146,3.74080202,4140.5,4140.4,2.20837]
[1759100480338,3.46090202,4140.5,4140.4,2.20837]
[1759100480536,3.99180202,4140.5,4140.4,2.20837]
[1759100480737,5.26550202,4140.5,4140.4,1.7738]
[1759100480939,5.26550202,4140.5,4140.4,0.7737]
[1759100481142,1.8046,4140.4,4140.3,0.43458]
[1759100481446,1.0504,4140.4,4140.3,2.20838]
[1759100481646,1.8046,4140.4,4140.3,2.20838]
[1759100481849,3.46090202,4140.5,4140.3,1.43468]
[1759100482048,3.99180202,4140.5,4140.4,1.7738]
[1759100483845,5.25780202,4140.5,4140.4,1.7738]
[1759100484042,5.25780202,4140.5,4140.0,0.3155]
[1759100484043,0.7465,4140.4,4140.2,0.43459]
[1759100484245,1.7527,4140.4,4140.3,1.249]
[1759100484446,1.2572,4140.4,4140.3,1.7419]
[1759100484945,0.43471,4139.1,4139.0,0.0031315]
[1759100485251,0.7465,4138.8,4137.6,3.2078]
[1759100485440,1.08683,4138.9,4137.6,3.2078]
[1759100485441,4.58573,4138.5,4137.6,3.2078]
[1759100485636,0.7465,4137.7,4137.0,3.5043]
[1759100485950,0.251,4137.6,4137.5,3.5043]
[1759100486242,0.73545792,4137.6,4137.5,3.5043]
[1759100486443,0.25348139,4137.6,4137.5,3.93917]
[1759100486645,0.00248139,4137.6,4137.5,3.93917]
[1759100486841,3.2078,4138.9,4138.3,0.43479]
[1759100487043,1.16714244,4138.8,4138.3,0.7508]
[1759100487351,0.91615244,4138.7,4138.2,3.2078]
[1759100487648,0.7465,4138.5,4138.3,0.7508]
[1759100487850,0.73239244,4138.4,4138.2,3.2078]
[1759100488039,0.48139244,4138.3,4137.6,0.7508]
[1759100488348,0.7465,4137.4,4137.0,0.75318526]
[1759100488548,1.47889244,4137.3,4137.1,0.7508]
[1759100488845,0.48139244,4137.2,4137.1,0.7508]
[1759100489738,0.251,4137.4,4137.3,0.43489]
[1759100489944,0.7442019,4137.4,4137.3,3.9586]
[1759100490440,0.251,4137.4,4137.3,3.9586]
[1759100493847,3.21062986,4138.5,4138.1,0.7508]
[1759100494148,0.49248673,4138.4,4138.3,1.18559]
[1759100494351,1.23898673,4138.4,4138.3,0.7508]
[1759100494544,0.49248673,4138.4,4137.8,3.2078]
[1759100494750,0.49248673,4138.3,4137.9,0.7508]
[1759100495252,0.7465,4138.1,4137.9,1.18563]
[1759100495445,0.251,4138.0,4137.9,1.18563]
[1759100495853,0.9975,4138.0,4137.9,0.7508]
[1759100496154,0.74352267,4138.0,4137.9,0.7508]
[1759100496653,0.251,4138.0,4137.9,0.7508]
[1759100497347,0.7465,4138.2,4138.0,1.18562]
[1759100497550,0.7465,4138.2,4137.8,3.9586]
[1759100497752,0.7465,4138.1,4137.8,3.64264]
[1759100497951,0.7465,4138.1,4137.9,0.7508]
[1759100498158,0.251,4138.3,4138.1,0.43481]
[1759100498348,0.00282986,4138.5,4138.2,0.7508]
[1759100498549,0.00282986,4138.5,4138.1,0.43481]
[1759100498550,0.74340399,4138.4,4138.1,0.43481]
[1759100498752,0.251,4138.4,4138.1,0.43481]
[1759100498947,1.2572,4138.4,4138.3,1.249]
[1759100499151,2.49610373,4138.4,4138.3,1.249]
[1759100499351,2.49608861,4138.4,4138.3,1.249]
[1759100500459,2.0037,4138.4,4138.3,1.249]
[1759100500945,1.2572,4138.4,4138.3,1.7419]
[1759100501350,0.7545,4138.4,4138.3,1.7419]
[1759100501551,0.7545,4138.4,4138.0,0.2965]
[1759100501552,0.00282986,4138.5,4138.4,2.17668]
[1759100501750,0.74623839,4138.5,4138.4,2.17668]
[1759100501948,0.25382986,4138.5,4138.4,2.17668]
[1759100502258,0.00282986,4138.5,4138.4,2.17668]
[1759100502557,0.25382986,4138.5,4138.4,2.17668]
[1759100503759,3.7113,4139.6,4139.3,0.43468]
[1759100503951,1.24700882,4139.5,4139.4,0.9911]
[1759100504146,0.251,4139.5,4139.4,0.9911]
[1759100504352,0.251,4139.5,4139.4,1.7419]
[1759100504652,0.25294457,4139.5,4139.4,1.7419]
[1759100506451,2.00564457,4139.5,4139.4,0.4982]
[1759100506758,0.25294457,4139.5,4139.4,1.7419]
[1759100506957,2.44031457,4139.5,4139.4,0.4982]
[1759100507150,1.25914457,4139.5,4139.4,1.7419]
[1759100507351,1.25914457,4139.5,4139.1,1.7419]
[1759100507352,0.5035,4139.2,4139.1,1.7419]
[1759100507554,1.0062,4139.2,4139.1,1.7419]
[1759100508364,0.5035,4139.2,4139.1,1.7419]
[1759100508558,2.00564457,4139.5,4139.4,1.249]
[1759100508751,1.0062,4139.2,4139.1,1.6837]
[1759100509056,0.7465,4139.1,4138.9,3.9586]
[1759100509262,0.251,4139.0,4138.9,5.38443]
[1759100513262,0.00194457,4139.5,4139.4,0.43468]
[1759100513467,0.50544457,4139.5,4139.4,2.17658]
[1759100513668,1.50154068,4139.5,4139.4,2.17658]
[1759100513867,0.49534068,4139.5,4139.4,2.17658]
[1759100514167,0.49534068,4139.5,4139.4,5.38438]
[1759100514759,0.00194457,4139.5,4139.4,5.38438]
[1759100516465,1.76144457,4139.5,4139.4,5.38438]
[1759100516763,2.25997562,4139.5,4139.4,4.63358]
[1759100516961,0.50047562,4139.5,4139.4,4.63358]
[1759100517263,2.51097562,4139.5,4139.4,5.34328]
[1759100517461,2.51097562,4139.5,4139.4,3.706]
[1759100517669,0.75147562,4139.5,4139.4,4.9055]
[1759100518071,0.50047562,4139.5,4139.4,4.9055]
[1759100518275,0.50047562,4139.5,4139.4,3.2078]
[1759100518276,2.57327562,4139.5,4139.4,3.2078]
[1759100518771,1.51407562,4139.5,4139.4,4.8878]
[1759100518961,2.25997562,4139.5,4139.4,4.8878]
[1759100519562,2.25997562,4139.5,4139.4,3.6883]
[1759100520465,2.57327562,4139.5,4139.4,3.2078]
[1759100520674,1.51407562,4139.5,4139.4,4.8878]
[1759100520873,0.99867562,4139.5,4139.4,4.8878]
[1759100521771,0.50047562,4139.5,4139.4,4.8878]
[1759100523172,0.00194457,4139.5,4139.4,4.8878]
[1759100524570,0.00194457,4139.5,4139.4,5.1388]
[1759100525274,0.00194457,4139.5,4139.4,4.8878]
[1759100525573,0.00194457,4139.5,4139.4,5.1388]
[1759100525776,0.00194457,4139.5,4139.4,10.1388]
[1759100525969,3.2078,4140.3,4140.2,0.43459]
[1759100526164,0.49905375,4140.3,4140.2,2.11459]
[1759100527072,0.50128847,4140.3,4140.2,2.11641251]
[1759100527367,0.00223472,4140.3,4140.2,2.11641251]
[1759100529475,4.88636,4141.5,4141.4,0.4805]
[1759100529668,4.88636,4141.5,4141.4,1.68]
[1759100529669,5.71728232,4141.5,4141.4,1.68]
[1759100530381,4.97138232,4141.5,4141.4,1.68]
[1759100530673,1.7658752,4141.5,4141.4,1.68]
[1759100530871,1.2504752,4141.5,4141.4,1.68]
[1759100531270,2.5117752,4141.5,4141.4,1.68]
[1759100531473,1.0136,4141.0,4140.9,4.398]
[1759100531774,1.38875,4140.6,4140.4,3.2078]
[1759100531973,1.08631,4140.9,4140.2,0.00182251]
[1759100531974,1.6872,4140.3,4140.2,0.00182251]
[1759100532176,1.6872,4140.0,4139.9,3.2078]
[1759100532364,1.45318232,4140.0,4139.9,4.9415]
[1759100532570,2.43718232,4140.0,4139.9,4.9415]
[1759100533171,2.43718232,4140.0,4139.9,4.9432398]
[1759100534078,1.70418232,4140.0,4139.9,4.9432398]
[1759100534475,2.43718232,4140.0,4139.9,4.9432398]
[1759100534673,2.71568232,4140.0,4139.9,0.0017398]
[1759100534876,7.71568232,4140.0,4139.9,0.0017398]
[1759100536079,2.43718232,4140.0,4139.9,0.5151398]
[1759100536285,2.43718232,4140.0,4139.9,1.2321398]
[1759100536581,1.70418232,4140.0,4139.9,1.7354398]
[1759100536978,2.43718232,4140.0,4139.9,0.0017398]
[1759100537178,2.71568232,4140.0,4139.9,0.0017398]
[1759100538085,10.92348232,4140.0,4139.9,0.0017398]
[1759100538377,10.92348232,4140.0,4138.4,3.2078]
[1759100538378,0.43477,4138.5,4138.4,3.2078]
[1759100538585,0.733,4138.4,4138.0,0.717]
[1759100538777,0.733,4138.2,4138.0,0.717]
[1759100538977,0.49898232,4138.1,4138.0,1.0032]
[1759100539286,0.251,4138.6,4138.5,1.0032]
[1759100539581,0.75218831,4138.6,4138.5,1.0032]
[1759100539781,0.733,4138.5,4138.2,0.43479]
[1759100539985,0.49940825,4138.4,4138.3,0.717]
[1759100540179,1.23240825,4138.4,4138.0,0.28931151]
[1759100540380,0.733,4138.2,4138.0,0.00311151]
[1759100540582,1.23240825,4138.1,4138.0,0.00311151]
[1759100541386,1.23240825,4138.1,4138.0,0.72011151]
[1759100541687,1.23240825,4138.1,4138.0,0.00311151]
[1759100542085,1.23240825,4138.1,4137.4,3.2078]
[1759100542273,1.44637,4137.5,4137.4,3.2078]
[1759100542582,2.19677825,4137.5,4137.4,3.2078]
[1759100543188,0.733,4137.3,4136.4,0.717]
[1759100543390,0.733,4136.4,4136.3,3.2078]
[1759100543579,0.75040825,4136.4,4135.7,3.2078]
[1759100543778,0.49940825,4136.3,4135.7,3.2078]
[1759100543982,0.7012,4136.1,4135.7,3.9074]
[1759100544281,0.251,4136.0,4135.8,0.6996]
[1759100544485,0.251,4136.0,4135.9,0.6996]
[1759100545285,0.251,4136.0,4135.7,3.21032397]
[1759100545584,0.7012,4135.9,4135.7,3.90992397]
[1759100545888,0.7012,4135.9,4135.7,4.34498397]
[1759100546091,0.7012,4135.9,4135.8,0.6996]
[1759100546785,0.7012,4136.7,4136.0,0.2825]
[1759100546995,0.251,4136.6,4136.5,0.6996]
[1759100547185,0.251,4136.6,4136.5,0.43498]
[1759100547387,0.251,4136.6,4136.5,1.13458]
[1759100547580,0.251,4136.6,4136.5,1.41708]
[1759100547787,0.7012,4137.0,4136.7,0.43496]
[1759100548087,0.7012,4137.0,4136.9,0.6996]
[1759100548288,0.251,4137.0,4136.9,0.6996]
[1759100548591,0.7012,4136.9,4136.6,0.6996]
[1759100548796,0.7012,4136.8,4136.2,3.2078]
[1759100549090,0.7012,4136.8,4136.2,3.64281]
[1759100549287,3.01117824,4136.3,4136.2,3.2078]
[1759100549490,3.96337824,4136.3,4136.2,3.2078]
[1759100549884,3.26217824,4136.3,4135.8,0.6996]
[1759100550289,0.7012,4136.2,4135.7,0.43758397]
[1759100550496,3.26217824,4136.3,4135.8,0.6996]
[1759100550700,0.7012,4136.2,4135.9,0.43503]
[1759100551102,0.7012,4136.2,4135.9,1.13463]
[1759100551302,3.2078,4136.6,4136.3,0.435]
[1759100551502,0.251,4136.5,4136.4,0.6996]
[1759100551698,0.5387,4136.5,4136.0,0.6996]
[1759100551903,0.7012,4136.4,4136.0,1.13463]
[1759100552204,3.2078,4136.6,4135.8,0.6996]
[1759100552506,0.251,4136.3,4136.2,1.13461]
[1759100552708,0.251,4136.3,4136.2,0.6996]
[1759100553001,0.7012,4136.2,4135.8,3.64285]
[1759100553298,0.43503,4136.1,4135.8,3.2078]
[1759100553505,3.69718824,4136.3,4135.8,3.2078]
[1759100553697,0.7012,4136.1,4135.8,3.2078]
[1759100553899,0.7012,4136.1,4135.8,0.6996]
[1759100554106,0.7012,4136.1,4135.7,0.43758397]
[1759100554308,0.7012,4136.1,4135.9,0.6996]
[1759100554500,3.64277,4136.6,4136.1,1.13462]
[1759100554700,0.9522,4136.5,4135.7,0.00252397]
[1759100554909,0.9522,4136.5,4136.0,0.2825]
[1759100555106,0.7012,4136.5,4136.4,0.6996]
[1759100555302,0.9522,4136.5,4136.0,0.71752]
[1759100555608,0.7012,4136.3,4136.0,0.43502]
[1759100555809,0.7012,4136.1,4136.0,0.43502]
[1759100556106,0.251,4136.2,4136.0,0.43502]
[1759100556304,3.2078,4136.6,4136.5,0.6996]
[1759100556505,3.4588,4136.6,4136.5,0.6996]
[1759100556701,3.2078,4136.6,4136.5,0.6996]
[1759100557004,3.2078,4137.1,4137.0,0.9821]
[1759100557199,3.4588,4137.1,4137.0,0.9821]
[1759100557405,0.251,4137.1,4137.0,0.9821]
[1759100558810,0.251,4137.1,4137.0,5.9821]
[1759100559308,18.857,4137.7,4137.6,1.13446]
[1759100559609,19.108,4137.7,4137.6,1.13446]
[1759100562301,19.8092,4137.7,4137.6,0.6996]
[1759100562502,0.7012,4137.3,4137.0,0.6996]
[1759100562709,0.7012,4137.1,4137.0,0.6996]
[1759100563900,0.251,4137.2,4137.1,0.43492]
[1759100564209,0.9522,4137.2,4137.1,0.6996]
[1759100564410,1.46051001,4137.2,4137.0,0.43492]
[1759100564612,0.7012,4137.1,4137.0,1.13452]
[1759100564812,0.251,4137.2,4137.1,0.6996]
[1759100565408,1.46084162,4137.2,4137.1,0.6996]
[1759100566017,0.43493,4137.0,4136.8,3.2078]
[1759100566312,1.46084162,4136.9,4136.8,3.2078]
[1759100566710,3.77081986,4136.9,4136.3,3.2078]
[1759100566912,0.7012,4136.4,4136.3,3.2078]
[1759100567115,1.46084162,4136.4,4136.3,3.2078]
[1759100567315,1.46084162,4136.4,4136.3,3.9074]
[1759100567518,0.75964162,4136.4,4136.3,3.9074]
[1759100568114,0.50864162,4136.4,4136.3,3.9074]
[1759100568414,0.251,4136.4,4136.3,8.9074]
[1759100568614,0.75964162,4136.4,4136.3,8.9074]
[1759100569015,0.75964162,4136.4,4136.3,3.9074]
[1759100571212,1.46084162,4136.4,4136.3,3.2078]
[1759100573716,1.97034162,4136.4,4136.3,3.2078]
[1759100573914,2.44834162,4136.4,4136.3,3.2078]
[1759100575621,1.74714162,4136.4,4136.2,0.43501]
[1759100575814,2.20824162,4136.3,4136.2,1.63431]
[1759100576922,0.9567,4136.0,4135.9,0.6992]
[1759100577122,0.9567,4136.0,4135.8,3.2078]
[1759100577123,1.6996,4135.9,4135.8,3.2078]
[1759100577420,2.20824162,4135.9,4135.8,3.2078]
[1759100577816,2.13466,4135.8,4135.7,0.00252397]
[1759100578017,2.20824162,4135.8,4135.7,0.00252397]
[1759100579617,1.46534162,4135.8,4135.7,1.66002397]
[1759100579812,0.98734162,4135.8,4135.7,1.66002397]
[1759100580219,2.20824162,4135.8,4135.7,1.20182397]
[1759100580413,2.20824162,4135.8,4135.7,0.00252397]
[1759100580613,1.46534162,4135.8,4135.7,1.66002397]
[1759100581220,2.20824162,4135.8,4135.7,0.00252397]
[1759100582625,1.46534162,4135.8,4135.7,1.66002397]
[1759100583024,0.98734162,4135.8,4135.7,1.66002397]
[1759100584629,0.50864162,4135.8,4135.7,1.66002397]
[1759100584828,0.251,4136.0,4135.9,1.6575]
[1759100585231,0.76059394,4136.0,4135.9,1.6575]
[1759100587023,0.76059394,4136.0,4135.9,0.93515]
[1759100587224,0.50959394,4136.0,4135.9,2.09255]
[1759100587425,0.50959394,4136.0,4135.9,7.09255]
[1759100587628,3.2078,4136.9,4136.8,1.6575]
[1759100587933,3.6865,4137.4,4137.3,1.6575]
[1759100588134,4.6804,4137.4,4137.3,1.6575]
[1759100588534,5.1584,4137.4,4137.3,1.6575]
[1759100589228,3.9375,4137.4,4137.3,1.6575]
[1759100589431,3.2078,4137.4,4137.3,1.6575]
[1759100589632,0.4787,4138.1,4138.0,0.5001]
[1759100589833,1.4726,4138.1,4138.0,1.1993]
[1759100590135,1.9506,4138.1,4138.0,1.1993]
[1759100590322,7.44057824,4138.4,4138.3,0.5001]
[1759100590526,7.44057824,4138.4,4138.3,1.6575]
[1759100590527,4.6804,4138.4,4138.3,1.6575]
[1759100590727,4.2017,4138.4,4138.3,0.6992]
[1759100590928,3.4588,4138.4,4138.1,0.6992]
[1759100591123,0.43484,4137.9,4137.8,3.2078]
[1759100591325,0.43484,4137.9,4136.8,0.43494]
[1759100591326,0.2758,4137.0,4136.7,3.2078]
[1759100591532,0.7444,4136.8,4136.7,3.2078]
[1759100591943,0.7444,4136.8,4135.7,0.00252397]
[1759100591944,0.2981,4136.5,4136.1,3.2078]
[1759100592135,0.252,4136.4,4136.1,3.2078]
[1759100592332,0.7444,4136.3,4136.1,3.9004]
[1759100592524,0.687,4136.4,4136.1,3.9004]
[1759100592731,0.7444,4136.2,4136.1,3.2078]
[1759100593030,0.7444,4136.0,4135.7,0.00252397]
[1759100593227,3.2078,4136.3,4135.9,0.43505]
[1759100593431,3.2078,4137.0,4136.7,0.6926]
[1759100593633,0.252,4136.9,4136.6,0.43497]
[1759100593836,3.26317824,4136.9,4136.1,0.6926]
[1759100594035,0.43497,4136.7,4136.1,1.12762]
[1759100594336,0.252,4136.6,4136.2,1.12761]
[1759100594534,0.7444,4136.5,4136.2,1.12761]
[1759100594734,0.7444,4136.5,4136.3,0.435]
[1759100594935,0.7444,4136.5,4136.1,3.2078]
[1759100595135,0.7444,4136.4,4136.1,3.2078]
[1759100595335,0.7444,4136.2,4136.1,3.2078]
[1759100595536,0.252,4136.3,4136.1,3.64283]
[1759100595736,0.252,4136.3,4136.2,0.6926]
[1759100598044,0.252,4136.3,4136.1,3.2078]
[1759100598245,0.252,4136.3,4136.2,0.6926]
[1759100598841,0.252,4136.3,4136.2,1.5992]
[1759100599041,0.7025,4136.3,4136.2,1.5992]
[1759100599347,1.4469,4136.3,4136.2,1.5992]
[1759100599761,1.95468936,4136.3,4136.2,1.5992]
[1759100600447,2.40928936,4136.3,4136.2,1.5992]
[1759100600651,1.6495,4136.2,4136.1,3.2078]
[1759100600858,2.15728936,4136.2,4136.1,3.2078]
[1759100601057,2.15728936,4136.2,4136.1,4.3575]
[1759100602153,2.15728936,4136.2,4136.1,3.6649]
[1759100602353,1.6495,4136.2,4136.1,3.6649]
[1759100602557,2.15737506,4136.2,4136.1,3.6649]
[1759100602954,2.15737506,4136.2,4136.1,4.3575]
[1759100604160,2.15737506,4136.2,4136.1,4.807]
[1759100605254,2.15737506,4136.2,4135.7,0.00252397]
[1759100605255,1.6491,4135.8,4135.7,0.00252397]
[1759100605462,2.40797506,4135.8,4135.7,0.00252397]
[1759100605663,0.50787506,4135.8,4135.7,1.67882397]
[1759100605958,1.08728,4137.3,4136.3,1.1927]
[1759100605959,3.6864,4136.4,4136.3,1.1927]
[1759100606158,2.40797482,4136.4,4136.3,0.4586]
[1759100606463,2.40797482,4136.4,4136.3,1.6763]
[1759100607163,2.40797482,4136.4,4136.3,0.4586]
[1759100607366,2.40797482,4136.4,4136.3,1.1927]
[1759100607961,2.14527482,4136.4,4135.7,3.21032397]
[1759100608265,0.4786,4135.9,4135.8,2.11136]
[1759100608563,0.75887482,4135.9,4135.8,2.11136]
[1759100609865,1.23747482,4135.9,4135.8,1.6763]
[1759100610158,0.50787482,4135.9,4135.8,2.11136]
[1759100610365,0.75887482,4135.9,4135.8,2.11136]
[1759100611756,1.23747482,4135.9,4135.8,2.11136]
[1759100615067,0.75887482,4135.9,4135.8,2.11136]
[1759100616767,0.02066482,4135.9,4135.8,2.11136]
[1759100617060,0.9958,4137.0,4135.8,2.11136]
[1759100617061,1.6491,4136.9,4136.8,0.4586]
[1759100617259,1.6491,4136.9,4136.4,0.43498]
[1759100617260,1.13268,4136.6,4136.4,0.43498]
[1759100617466,1.9001,4136.5,4136.4,0.89358]
[1759100617665,1.9001,4136.5,4136.4,2.11128]
[1759100620167,2.186,4136.5,4136.4,0.43498]
[1759100620663,0.9514,4136.2,4136.0,0.43503]
[1759100620969,1.9001,4136.1,4136.0,0.43503]
[1759100621268,3.42164374,4136.7,4136.0,0.43503]
[1759100621269,0.4786,4136.7,4136.6,2.11124]
[1759100621566,0.251,4136.7,4136.6,2.11124]
[1759100622466,1.73299747,4138.0,4137.9,0.43478]
[1759100622660,0.251,4138.0,4137.9,2.11108]
[1759100622862,0.7296,4138.0,4137.9,2.11108]
[1759100623056,0.251,4138.0,4137.9,2.11108]
[1759100623466,1.4273,4138.0,4137.9,2.11108]
[1759100624565,0.7296,4138.0,4137.9,2.11108]
[1759100625266,1.4273,4138.0,4137.9,2.11108]
[1759100625470,1.9001,4138.0,4137.9,1.6763]
[1759100625669,1.9001,4138.0,4137.5,1.16893]
[1759100625670,0.9514,4137.9,4137.5,1.16893]
[1759100625971,1.6491,4137.8,4137.7,1.1927]
[1759100626169,1.6491,4137.8,4137.7,1.6763]
[1759100626371,0.251,4138.0,4137.9,1.6763]
[1759100626768,1.9001,4138.0,4137.9,0.4586]
[1759100626977,1.9001,4138.0,4137.9,1.1927]
[1759100627170,0.6977,4137.9,4137.8,3.2078]
[1759100627369,4.1914,4138.5,4137.8,4.8841]
[1759100627570,0.4786,4138.1,4138.0,2.40478]
[1759100627772,1.1763,4138.1,4138.0,1.97]
[1759100627965,0.7296,4138.4,4138.3,0.4586]
[1759100628171,0.7296,4138.4,4138.3,1.6763]
[1759100628377,1.9001,4138.4,4137.8,3.2078]
[1759100628570,0.4786,4138.0,4137.9,0.9422]
[1759100628770,0.7296,4138.0,4137.9,1.6763]
[1759100629076,0.75321177,4138.0,4137.9,1.6763]
[1759100631473,1.23181177,4138.0,4137.9,1.6763]
[1759100631778,2.68821177,4138.0,4137.9,0.4586]
[1759100632075,2.68821177,4138.0,4137.8,3.2078]
[1759100632076,2.08389,4137.9,4137.8,3.2078]
[1759100632271,2.58610177,4137.9,4137.8,3.2078]
[1759100632974,2.15131177,4137.9,4137.8,3.2078]
[1759100634677,1.88841177,4137.9,4137.3,4.37675]
[1759100634877,0.4883,4137.4,4137.3,5.34085]
[1759100635079,0.7393,4137.4,4137.3,5.34085]
[1759100635378,0.251,4137.4,4137.3,5.34085]
[1759100635969,0.7393,4137.4,4137.3,4.906]
[1759100636170,1.4359,4137.4,4137.3,4.906]
[1759100636371,1.9133,4137.4,4137.3,4.1719]
[1759100636574,2.41331052,4137.4,4137.3,4.8697]
[1759100639180,1.71671052,4137.4,4137.3,4.8697]
[1759100639374,0.75101052,4137.4,4137.3,4.8697]
[1759100639574,1.23931052,4137.4,4137.3,4.8697]
[1759100640074,0.75101052,4137.4,4137.3,4.8697]